[Event "Israel-ch Youth U8-18 2024"]
[Site "Kfar Saba"]
[Date "2024.04.18"]
[Round "4.10"]
[White "Shilon Rahav, Eliran"]
[Black "Cohen, Yisgav"]
[Result "1-0"]
[ECO "C77"]
[WhiteElo "2116"]
[BlackElo "1478"]
[Annotator "TA"]
[PlyCount "89"]
[EventDate "2024.04.10"]
[EventType "swiss"]
[EventCountry "ISR"]
[SourceTitle "playchess.com"]
[Source "ChessBase"]
[SourceQuality "1"]
[TimeControl "5400+30"]

{[%evp 12,89,0,-8,16,18,27,25,50,60,100,98,95,95,102,102,112,112,129,119,134,86,100,77,96,83,127,125,265,253,279,280,337,300,349,343,348,352,333,274,284,241,263,263,261,265,266,265,265,266,260,252,243,188,272,275,414,350,347,327,636,641,867,852,1003,983,2261,2059,5928,5916,29977,29978,29983,29984,29984,29985,29985,29986,29986,29987]} 1. e4 {[%emt 0:00:10]} e5 {[%emt 0:00:10]} 2. Nf3 {[%emt 0:00:19]} Nc6 {[%emt 0:00:14]} 3. Bb5 {[%emt 0:00:09]} a6 {[%emt 0:00:11]} 4. Ba4 {[%emt 0:00:07]} Nf6 {[%emt 0:00:12]} 5. Qe2 {[%emt 0:00:12]} b5 {[%emt 0:00:57]} 6. Bb3 {[%emt 0:00:07]} Bc5 {[%emt 0:00:28]} 7. a4 {[%emt 0:01:01]} b4 {[%emt 0:01:19] [#]} 8. Bxf7+ $1 {[%emt 0:00:52]} Kxf7 {[%emt 0:00:58]} 9. Qc4+ {[%emt 0:00:08]} Ke8 {[%emt 0:01:04] ...d6 is the strong threat. White has an edge.} 10. Qxc5 {[%emt 0:00:14]} Qe7 {[%emt 0:03:11]} 11. Qxe7+ {[%emt 0:03:04]} Kxe7 {[%emt 0:00:13]} 12. d3 {[%emt 0:02:17]} h6 {[%emt 0:00:41]} 13. Be3 {[%emt 0:01:12]} a5 {[%emt 0:01:06]} 14. Nbd2 {[%emt 0:02:00][%cal Bb1d2,Bd2b3,Bb3a5,Ba5c6][%mdl 32]} Ba6 {[%emt 0:00:55]} 15. O-O-O {[%emt 0:03:22]} Ng4 {[%emt 0:01:40]} 16. Rhe1 {[%emt 0:02:26]} (16. Nh4 $142 {And now Ng6+ would win.} Ke6 17. Rdf1) 16... Nxe3 $16 {[%emt 0:00:44]} 17. Rxe3 {[%emt 0:00:31][%cal Be1e3,Be3b3,Bb3f3][%mdl 32]} g5 {[%emt 0:00:44] Against Nh4} 18. Nb3 {[%emt 0:00:40]} d6 {[%emt 0:01:44]} 19. d4 {[%emt 0:02:30][%cal Bd3d4,Bd4d5][%mdl 32]} Rad8 {[%emt 0:02:34] This move loses the game for Black.} (19... g4 $16 20. Nh4 Kf6 21. dxe5+ Nxe5) 20. d5 $18 {[%emt 0:00:18]} Nb8 {[%emt 0:00:18]} 21. Nxa5 {[%emt 0:00:07]} Kf6 {[%emt 0:01:16]} 22. Rb3 {[%emt 0:00:14]} Be2 {[%emt 0:02:32]} 23. Rd2 {[%emt 0:00:49]} Bxf3 {[%emt 0:00:09]} 24. Rxf3+ {[%emt 0:00:04]} ({But not} 24. gxf3 Na6 25. Re3 Rdf8 $18) 24... Kg6 {[%emt 0:00:07]} 25. Rb3 {[%emt 0:00:10]} Na6 {[%emt 0:00:33]} 26. Nc6 {[%emt 0:00:09][%csl LRb4,LRd8]} Ra8 {[%emt 0:00:07]} 27. f3 {[%emt 0:00:46]} Nc5 {[%emt 0:01:01]} 28. Rxb4 {[%emt 0:00:09]} Nxa4 {[%emt 0:00:09]} 29. Rd3 {[%emt 0:00:49]} Nc5 {[%emt 0:00:43]} 30. Ra3 {[%emt 0:00:18]} Rxa3 {[%emt 0:00:06]} 31. bxa3 {[%emt 0:00:05][%mdl 4096] Endgame. KRN-KRN} Ra8 {[%emt 0:00:23]} 32. Kb2 {[%emt 0:00:13]} Kh5 {[%emt 0:00:29]} (32... g4 {was worth a try.}) 33. Rc4 {[%emt 0:02:26][%cal Oc6e5]} g4 {[%emt 0:01:08]} (33... Re8 $142 34. a4 g4) 34. fxg4+ {[%emt 0:03:22]} Kxg4 {[%emt 0:00:10]} 35. Nxe5+ $1 {[%emt 0:00:07]} dxe5 $2 {[%emt 0:02:41]} (35... Kf4) 36. Rxc5 {[%emt 0:00:06] KR-KR} Kf4 {[%emt 0:00:05]} 37. Rxc7 {[%emt 0:00:44]} Kxe4 {[%emt 0:00:09]} 38. c4 {[%emt 0:00:08][%cal Bc2c4,Bc4c5,Bc5c6][%mdl 32] [#] Hoping for d6.} Kd3 {[%emt 0:01:07]} 39. d6 {[%emt 0:00:44] Threatens to win with d7.} Rd8 {[%emt 0:00:55]} 40. c5 {[%emt 0:00:11] d7 would kill now.} e4 {[%emt 0:01:22][%cal Be5e4,Be4e3][%mdl 32]} 41. c6 {[%emt 0:02:14] White mates.} e3 {[%emt 0:03:59]} 42. Re7 {[%emt 0:00:15]} ({Wrong is} 42. d7 $2 e2 43. Rb7 e1=Q $19 (43... e1=B $2 {is the wrong capture.} 44. c7 $18)) 42... Rxd6 {[%emt 0:02:20]} 43. Rd7 {[%emt 0:00:06]} Rd4 {[%emt 0:00:52]} 44. Rxd4+ {[%emt 0:00:05]} Kxd4 {[%emt 0:00:19]} 45. Kc2 {[%emt 0:00:05] Weighted Error Value: White=0.11 (very precise) /Black=0.54.  Mistake:       	White=1     	Black=4      Inaccurate:     	---       	Black=3      OK:         	White=16    	Black=10     Best:        	White=1     	Black=1      Strong:       	White=1     	---} 1-0

[Event "Israel-ch Youth U8-18 2024"]
[Site "Kfar Saba"]
[Date "2024.04.18"]
[Round "4.11"]
[White "Gurevich, Neria"]
[Black "Vardi, Daniel"]
[Result "1-0"]
[ECO "D34"]
[WhiteElo "1844"]
[BlackElo "1937"]
[Annotator "NA COMBH"]
[PlyCount "73"]
[EventDate "2024.04.10"]
[EventType "swiss"]
[EventCountry "ISR"]
[SourceTitle "playchess.com"]
[Source "ChessBase"]
[SourceQuality "1"]
[TimeControl "5400+30"]

1. d4 {[%emt 0:00:03]} d5 {[%emt 0:00:01]} 2. c4 {[%emt 0:00:10]} e6 {[%emt 0:00:06]} 3. Nf3 {[%emt 0:00:12]} c5 {[%emt 0:00:01]} 4. cxd5 {[%emt 0:00:24]} exd5 {[%emt 0:00:02]} 5. g3 {[%emt 0:00:27]} Nc6 {[%emt 0:00:02]} 6. Bg2 {[%emt 0:00:29]} Nf6 {[%emt 0:00:01]} 7. O-O {[%emt 0:00:21]} Be7 {[%emt 0:00:02]} 8. Nc3 {[%emt 0:00:28]} O-O {[%emt 0:00:02]} 9. dxc5 {[%emt 0:02:34]} Bxc5 {[%emt 0:00:17]} 10. Bg5 {[%emt 0:00:15]} Be6 {[%emt 0:00:04]} 11. Bxf6 {[%emt 0:00:33]} Qxf6 {[%emt 0:01:07]} 12. Nxd5 {[%emt 0:00:24]} Qxb2 {[%emt 0:00:07]} 13. Nc7 {[%emt 0:00:21]} Rad8 {[%emt 0:00:47]} 14. Qc1 {[%emt 0:00:31]} Qxc1 {[%emt 0:00:14]} 15. Raxc1 {[%emt 0:00:07]} b6 {[%emt 0:00:05]} 16. Nxe6 {[%emt 0:00:32]} fxe6 {[%emt 0:00:03]} 17. e3 {[%emt 0:00:35]} h6 {[%emt 0:00:05] D34: Tarrasch Defence: 6 g3 Nf6 7 Bg2 Be7.} 18. Rc4 {[%emt 0:01:52]} Rf6 {[%emt 0:07:08]} 19. h4 {[%emt 0:06:36]} h5 {[%emt 0:26:22]} 20. Ng5 {[%emt 0:03:38]} Na5 {[%emt 0:08:27]} 21. Re4 {[%emt 0:00:40]} Rd2 {[%emt 0:07:16]} 22. Bh3 {[%emt 0:05:33]} g6 {[%emt 0:02:03]} 23. Nxe6 {[%emt 0:02:33]} Nb7 {[%emt 0:01:01]} 24. Ng5 {[%emt 0:05:36]} Nd6 $18 {[%emt 0:09:05]} (24... Kg7 {might work better.} 25. Re8 Rf8 26. Ne6+ Kf7 27. Nxf8 Kxe8 28. Nxg6 Nd6) 25. Re7 {[%emt 0:02:21]} a5 {[%emt 0:14:13]} 26. Rd7 {[%emt 0:04:57]} Nc4 {[%emt 0:06:08]} 27. Ne4 {[%emt 0:00:31]} Rfd6 {[%emt 0:02:08]} 28. Nxd2 {[%emt 0:00:57]} Rxd2 {[%emt 0:00:07]} 29. Be6+ {[%emt 0:00:19]} Kh8 {[%emt 0:00:09]} 30. Rxd2 {[%emt 0:00:37]} Nxd2 {[%emt 0:00:02]} 31. Rd1 {[%emt 0:00:12]} Bb4 {[%emt 0:00:05]} 32. Bd5 {[%emt 0:00:26]} Kg7 {[%emt 0:00:09]} 33. a3 {[%emt 0:00:11]} Bc3 {[%emt 0:00:03]} 34. Rc1 {[%emt 0:00:09]} Bb2 {[%emt 0:00:22]} 35. Rc2 {[%emt 0:00:10]} Bxa3 {[%emt 0:00:02]} 36. Rxd2 {[%emt 0:00:10]} b5 {[%emt 0:20:34]} 37. Bc6 {[%emt 0:00:15]} 1-0

[Event "Israel-ch Youth U8-18 2024"]
[Site "Kfar Saba"]
[Date "2024.04.18"]
[Round "4.12"]
[White "Triger, Eitan"]
[Black "Sason, Noam"]
[Result "0-1"]
[ECO "B28"]
[WhiteElo "1820"]
[BlackElo "1903"]
[Annotator "TA"]
[PlyCount "62"]
[EventDate "2024.04.10"]
[EventType "swiss"]
[EventCountry "ISR"]
[SourceTitle "playchess.com"]
[Source "ChessBase"]
[SourceQuality "1"]
[TimeControl "5400+30"]

{[%evp 13,62,0,0,0,0,0,0,-24,-14,-34,-22,-12,4,0,0,-47,0,0,17,-32,-23,-16,-14,-32,-26,-45,-53,-83,-77,-109,-117,-129,-129,-191,-191,-198,-188,-171,-149,-130,-119,-126,-82,-108,-90,-227,-239,-272,-267,-1102,-1091]} 1. e4 {[%emt 0:00:03]} c5 {[%emt 0:00:08]} 2. Nf3 {[%emt 0:00:04]} a6 {[%emt 0:00:14]} 3. d4 {[%emt 0:00:06]} cxd4 {[%emt 0:00:08]} 4. Nxd4 {[%emt 0:00:05]} Nf6 {[%emt 0:00:28]} 5. Nc3 {[%emt 0:00:07]} e5 {[%emt 0:00:22]} 6. Nb3 {[%emt 0:03:55]} Bb4 {[%emt 0:00:28]} 7. Bg5 {[%emt 0:02:34]} h6 {[%emt 0:06:32]} 8. Bxf6 {[%emt 0:00:48]} Bxc3+ {[%emt 0:00:36]} 9. bxc3 {[%emt 0:00:05]} Qxf6 {[%emt 0:00:10]} 10. Qd2 {[%emt 0:02:14] The position is equal.} O-O {[%emt 0:02:43]} 11. Be2 {[%emt 0:01:00]} d6 {[%emt 0:01:39]} 12. O-O {[%emt 0:00:18]} Qg6 {[%emt 0:03:47]} 13. Qe3 {[%emt 0:03:57]} Nc6 {[%emt 0:02:05]} 14. f4 {[%emt 0:05:13]} (14. Rfd1 $11) 14... f5 {[%emt 0:06:40]} (14... exf4 $15 {should be considered.} 15. Rxf4 Ne5) 15. Bc4+ $11 {[%emt 0:16:55]} Kh8 {[%emt 0:02:36]} 16. Bd3 {[%emt 0:03:47]} (16. fxe5 $11 {deserves consideration.} dxe5 (16... Nxe5 17. Bd5 $14) 17. exf5 Bxf5 18. Nc5) 16... fxe4 $15 {[%emt 0:02:33]} 17. Bxe4 {[%emt 0:00:34]} Bf5 {[%emt 0:00:21]} 18. Bxf5 {[%emt 0:00:19]} Rxf5 {[%emt 0:02:23]} (18... Qxf5 {simplifies} 19. fxe5 Qxe5 20. Qxe5 Nxe5 21. Rxf8+ Rxf8 22. Rd1 Nc4) 19. Qd3 {[%emt 0:05:51]} Raf8 {[%emt 0:05:22][%cal Ba8f8,Bf8f5,Bf5f3,Bf3d3,Bd3c3,Bc3c5,Bc5h5,Bh5b5][%mdl 32]} (19... Kh7 {simplifies} 20. fxe5 Rxf1+ 21. Kxf1 Nxe5 22. Qxg6+ Kxg6 23. Rd1 Nc4) 20. fxe5 {[%emt 0:04:00]} Nxe5 {[%emt 0:01:29]} 21. Rxf5 {[%emt 0:03:46]} Rxf5 {[%emt 0:01:09]} ({Much less strong is} 21... Qxf5 22. Qxf5 Rxf5 23. h3 $15) 22. Qe2 {[%emt 0:00:27]} Rf3 $1 {[%emt 0:02:31]} 23. Qd2 {[%emt 0:11:48] [#]} (23. Nd4 $17 {might work better.} Rxc3 24. Kh1) 23... Rd3 $3 $19 {[%emt 0:00:52][%mdl 512]} 24. Qf2 {[%emt 0:02:16]} (24. Qe2 Rxc3) 24... Rxc3 {[%emt 0:01:15]} 25. Nd4 {[%emt 0:00:45]} Ng4 {[%emt 0:10:42]} 26. Qd2 {[%emt 0:03:11]} Rc5 {[%emt 0:03:44] Black is more active.} 27. Rf1 {[%emt 0:04:45]} Rh5 {[%emt 0:05:35]} 28. Rf8+ {[%emt 0:06:11]} Kh7 {[%emt 0:00:26]} 29. Nf3 {[%emt 0:03:28] [#]} (29. h3 $17 {is a better defense.} Nf6 30. Qf4) 29... Rb5 $1 {[%emt 0:03:09]} 30. Qc1 {[%emt 0:03:14] Inhibits Rb1.} d5 {[%emt 0:07:08] Threatens to win with ...Qb6+.} 31. h3 $2 {[%emt 0:01:57]} (31. Nd4 Qb6 32. Qd2) 31... Qb6+ {[%emt 0:28:45] Weighted Error Value: White=0.39/Black=0.08 (flawless) .  Mistake:       	White=5     	Black=1      Inaccurate:     	White=2     	Black=1      OK:         	White=3     	Black=12     Best:        	---       	Black=1      Strong:       	---       	Black=1} 0-1

[Event "Israel-ch Youth U8-18 2024"]
[Site "Kfar Saba"]
[Date "2024.04.18"]
[Round "4.13"]
[White "Ben-Haim, Harel"]
[Black "Ronin, Ilan"]
[Result "0-1"]
[ECO "D02"]
[WhiteElo "1513"]
[BlackElo "1555"]
[Annotator "NA RC COMBH"]
[PlyCount "106"]
[EventDate "2024.04.10"]
[EventType "swiss"]
[EventCountry "ISR"]
[SourceTitle "playchess.com"]
[Source "ChessBase"]
[SourceQuality "1"]
[TimeControl "5400+30"]

1. d4 {[%emt 0:00:11]} Nf6 {[%emt 0:00:13]} 2. Bf4 {[%emt 0:00:05]} e6 {[%emt 0:00:26]} 3. Nf3 {[%emt 0:00:08]} c5 {[%emt 0:01:31]} 4. c3 {[%emt 0:00:15]} Nc6 {[%emt 0:00:22]} 5. e3 {[%emt 0:00:08]} Be7 {[%emt 0:03:02]} 6. h3 {[%emt 0:00:27]} O-O {[%emt 0:01:02]} 7. Bd3 {[%emt 0:00:11]} d5 {[%emt 0:00:56]} 8. Nbd2 {[%emt 0:01:14]} cxd4 {[%emt 0:01:30]} 9. exd4 {[%emt 0:00:36]} Re8 {[%emt 0:07:46]} 10. O-O {[%emt 0:01:44]} a6 {[%emt 1:18:42]} 11. Qc2 {[%emt 0:01:20]} h6 {[%emt 0:00:00]} 12. Rfe1 {[%emt 0:01:23]} Bd7 {[%emt 0:00:00]} 13. Ne5 {[%emt 0:00:47]} Nxe5 {[%emt 0:00:00]} 14. Bxe5 {[%emt 0:01:00]} Bb5 {[%emt 0:00:00]} 15. Bxb5 {[%emt 0:01:44]} axb5 {[%emt 0:00:00]} 16. Qd3 {[%emt 0:04:42]} b4 {[%emt 0:00:00]} 17. Rec1 {[%emt 0:08:58]} Qb6 {[%emt 0:00:00]} 18. Nb3 {[%emt 0:14:01]} bxc3 {[%emt 0:00:00]} 19. bxc3 {[%emt 0:03:34]} Ne4 {[%emt 0:00:00]} 20. f3 {[%emt 0:05:48]} Nf6 {[%emt 0:00:00]} 21. Kh1 {[%emt 0:02:31]} Bd6 {[%emt 0:00:00]} 22. Qe3 {[%emt 0:04:47]} Bxe5 {[%emt 0:00:00]} 23. Qxe5 {[%emt 0:03:56]} Rec8 {[%emt 0:00:00]} 24. Nc5 {[%emt 0:02:01]} Qb2 {[%emt 0:00:00]} 25. Rab1 {[%emt 0:09:40]} Qd2 {[%emt 0:00:00]} 26. Qe1 {[%emt 0:09:46]} Qg5 {[%emt 0:00:00]} 27. Rc2 {[%emt 0:02:38]} Qg6 {[%emt 0:00:00]} 28. Qd1 {[%emt 0:02:38]} Nh5 {[%emt 0:00:00]} 29. Rxb7 {[%emt 0:02:37]} Ng3+ {[%emt 0:00:00]} 30. Kg1 {[%emt 0:00:23]} Nf5 {[%emt 0:00:00]} 31. Qd2 {[%emt 0:01:25]} Rab8 {[%emt 0:00:00]} 32. Rcb2 {[%emt 0:01:43]} Rxb7 {[%emt 0:00:00]} 33. Rxb7 {[%emt 0:00:12]} Nh4 {[%emt 0:00:00]} 34. Qf2 {[%emt 0:01:08]} Nf5 {[%emt 0:00:00]} 35. a4 {[%emt 0:03:26]} Nd6 {[%emt 0:00:00]} 36. Rb2 {[%emt 0:01:45]} Nc4 {[%emt 0:00:00]} 37. Rb4 {[%emt 0:01:56]} Qg5 {[%emt 0:00:00]} 38. f4 {[%emt 0:00:31]} Qg6 {[%emt 0:00:00]} 39. Qe2 {[%emt 0:02:35]} Qg3 {[%emt 0:00:00]} 40. Qf3 {[%emt 0:00:32]} Qe1+ {[%emt 0:00:00]} 41. Kh2 {[%emt 0:02:38]} Ne3 {[%emt 0:00:00]} 42. Rb1 {[%emt 0:01:26]} Qxb1 {[%emt 0:00:00]} 43. Qxe3 {[%emt 0:00:01]} Qg6 {[%emt 0:00:00]} 44. a5 {[%emt 0:00:15]} Qb1 {[%emt 0:00:00]} 45. a6 {[%emt 0:00:11]} Qb6 {[%emt 0:00:00]} 46. Qe2 {[%emt 0:00:31]} Qb8 {[%emt 0:00:00]} 47. Qa2 {[%emt 0:01:29]} Qxf4+ {[%emt 0:00:00]} 48. g3 {[%emt 0:00:20]} Qc7 {[%emt 0:00:00]} 49. Qa4 {[%emt 0:01:21]} Rb8 {[%emt 0:00:00]} 50. Kg2 {[%emt 0:01:00]} Rb2+ {[%emt 0:00:00]} 51. Kf3 {[%emt 0:00:14]} Qd8 {[%emt 0:00:00]} 52. Qc6 {[%emt 0:00:55]} Qf6+ {[%emt 0:00:00]} 53. Kg4 {[%emt 0:00:21]} Qf5+ {[%emt 0:00:00]} 0-1

[Event "Israel-ch Youth U8-18 2024"]
[Site "Kfar Saba"]
[Date "2024.04.18"]
[Round "5.1"]
[White "Levi, Or"]
[Black "Sokolovsky, Yahli"]
[Result "0-1"]
[ECO "B90"]
[WhiteElo "1967"]
[BlackElo "2490"]
[Annotator "TA"]
[PlyCount "92"]
[EventDate "2024.04.10"]
[EventType "swiss"]
[EventCountry "ISR"]
[SourceTitle "playchess.com"]
[Source "ChessBase"]
[SourceQuality "1"]
[TimeControl "5400+30"]

{[%evp 18,92,8,17,11,12,12,10,8,8,9,8,25,10,16,13,27,17,77,16,11,8,14,3,25,0,12,19,31,0,0,0,0,0,0,0,0,0,0,0,0,0,0,-8,108,-61,-36,-114,-118,-120,-114,-267,-264,-272,-289,-357,-360,-375,-367,-356,-353,-422,-416,-400,-416,-471,-480,-466,-486,-533,-532,-665,-636,-657,-672,-703,-685]} 1. e4 {[%emt 0:00:13]} c5 {[%emt 0:00:03]} 2. Nf3 {[%emt 0:00:45]} d6 {[%emt 0:00:07]} 3. d4 {[%emt 0:01:32]} cxd4 {[%emt 0:00:03]} 4. Nxd4 {[%emt 0:00:06]} Nf6 {[%emt 0:00:05]} 5. Nc3 {[%emt 0:00:27]} a6 {[%emt 0:00:04]} 6. Be3 {[%emt 0:01:58]} e5 {[%emt 0:00:05]} 7. Nf3 {[%emt 0:00:05]} Be7 {[%emt 0:00:04]} 8. Bc4 {[%emt 0:00:08]} O-O {[%emt 0:00:04]} 9. O-O {[%emt 0:00:31]} Nc6 {[%emt 0:00:03]} 10. Qe2 {[%emt 0:04:31]} Na5 {[%emt 0:00:50]} 11. Bb3 {[%emt 0:03:57]} h6 {[%emt 0:01:01]} 12. Rfd1 {[%emt 0:02:39] Threatens to win with Nxe5.} Nxb3 {[%emt 0:02:55] The position is equal.} 13. cxb3 {[%emt 0:02:22] Strongly threatening Nxe5.} Qe8 {[%emt 0:01:05]} 14. Ne1 {[%emt 0:12:40]} Be6 {[%emt 0:19:34]} 15. Nc2 {[%emt 0:01:20]} Rc8 {[%emt 0:01:36]} 16. Rac1 {[%emt 0:15:09]} Nd7 {[%emt 0:02:09]} 17. Nb4 {[%emt 0:03:07]} Bd8 {[%emt 0:02:54]} (17... f5 $11) 18. Nbd5 {[%emt 0:08:34]} (18. Rxd6 Be7 19. Qd2 Bxd6 20. Qxd6 Kh7 $14) (18. Qd2 $16) 18... f5 $11 {[%emt 0:01:45]} 19. exf5 {[%emt 0:02:28]} Bxf5 {[%emt 0:00:07]} 20. f3 {[%emt 0:01:14]} Qg6 {[%emt 0:04:10]} 21. Kh1 {[%emt 0:01:16]} Kh8 {[%emt 0:03:44]} 22. b4 {[%emt 0:03:18]} Re8 {[%emt 0:20:12]} 23. Ne4 {[%emt 0:05:03] A dynamic duo of knights.} Rxc1 {[%emt 0:04:42]} 24. Bxc1 {[%emt 0:00:13]} Bxe4 {[%emt 0:08:27]} 25. Qxe4 {[%emt 0:00:37]} Qxe4 {[%emt 0:00:04]} 26. fxe4 {[%emt 0:00:05]} Kg8 {[%emt 0:01:10]} 27. Be3 {[%emt 0:02:52]} Kf7 {[%emt 0:00:22]} 28. g3 {[%emt 0:01:10]} Ke6 {[%emt 0:00:45]} 29. Kg2 {[%emt 0:00:32]} Nf6 {[%emt 0:00:44]} 30. Nc3 {[%emt 0:07:02]} Rf8 {[%emt 0:00:16]} (30... h5 $11 {remains equal.}) 31. a4 $2 {[%emt 0:02:57] [#]} ({White must play} 31. Rxd6+ $1 $16 Kxd6 32. Bc5+ Ke6 33. Bxf8) 31... Rf7 {[%emt 0:01:41]} 32. Rc1 {[%emt 0:04:09]} (32. Rd3 $15) 32... Rc7 $17 {[%emt 0:03:10]} 33. Kf3 {[%emt 0:00:58]} Rc4 {[%emt 0:02:31]} 34. Na2 {[%emt 0:04:26] This move loses the game for White.} (34. b3 $17 Rxb4 35. Rb1) 34... Rxe4 $19 {[%emt 0:03:34]} 35. b3 {[%emt 0:01:43]} d5 {[%emt 0:01:31]} 36. h3 {[%emt 0:01:08]} Nh7 {[%emt 0:02:04]} ({But not} 36... d4 37. Bd2 g5 38. Rc4 $19) 37. h4 {[%emt 0:02:30]} Nf6 {[%emt 0:00:19]} 38. Rc8 {[%emt 0:01:19]} Kd7 {[%emt 0:00:28]} 39. Rc1 {[%emt 0:01:01]} Rg4 {[%emt 0:01:24]} 40. Bf2 {[%emt 0:02:08]} d4 {[%emt 0:00:37]} 41. Kg2 {[%emt 0:01:27]} Ne4 {[%emt 0:00:41] Black is clearly winning.} 42. Be1 {[%emt 0:00:26]} h5 {[%emt 0:00:34]} ({Don't do} 42... Bxh4 43. Kh3 Rxg3+ (43... Bg5 44. Kxg4 Bxc1 45. Nxc1 $11) 44. Bxg3 Bxg3 45. Rg1 $19) 43. Kf3 {[%emt 0:00:47]} Nd6 {[%emt 0:00:09]} 44. Rd1 {[%emt 0:00:18]} Ke6 {[%emt 0:01:15]} 45. Bf2 {[%emt 0:00:37]} Bf6 {[%emt 0:01:01]} 46. Ke2 {[%emt 0:00:16]} Nf5 {[%emt 0:00:20] Weighted Error Value: White=0.29 (precise) /Black=0.10 (very precise) .  Mistake:       	White=4     	Black=2      Inaccurate:     	White=1     	---        OK:         	White=12    	Black=23     Best:        	White=2     	Black=1} 0-1

[Event "Israel-ch Youth U8-18 2024"]
[Site "Kfar Saba"]
[Date "2024.04.18"]
[Round "5.2"]
[White "Levin, Guy"]
[Black "Aizenberg, Benny"]
[Result "1/2-1/2"]
[ECO "B23"]
[WhiteElo "2451"]
[BlackElo "2409"]
[Annotator "TA"]
[PlyCount "77"]
[EventDate "2024.04.10"]
[EventType "swiss"]
[EventCountry "ISR"]
[SourceTitle "playchess.com"]
[Source "ChessBase"]
[SourceQuality "1"]
[TimeControl "5400+30"]

{[%evp 9,77,13,16,2,0,7,22,22,20,15,26,18,25,25,27,-11,0,-7,9,0,10,-33,0,-34,54,32,37,20,28,10,134,136,141,120,84,85,97,97,95,70,84,87,123,76,209,168,211,239,222,235,243,243,243,179,179,157,182,164,201,186,156,54,66,58,68,64,74,41,49,0]} 1. e4 {[%emt 0:00:13]} c5 {[%emt 0:00:06]} 2. Nc3 {[%emt 0:00:06]} Nc6 {[%emt 0:00:04]} 3. Bb5 {[%emt 0:00:06]} Nd4 {[%emt 0:00:11]} 4. Nf3 {[%emt 0:00:04]} a6 {[%emt 0:00:05]} 5. Bd3 {[%emt 0:00:07]} Nc6 {[%emt 0:00:12]} 6. O-O {[%emt 0:00:05]} e6 {[%emt 0:00:03]} 7. b3 {[%emt 0:00:09]} g5 {[%emt 0:04:54]} 8. Bb2 {[%emt 0:00:10][%cal Oc3d5] Threatens to win with Nd5! The position is equal.} Bg7 {[%emt 0:00:05]} 9. Na4 {[%emt 0:00:06][%csl LRc5,LRg7]} Bxb2 {[%emt 0:00:24]} 10. Nxb2 {[%emt 0:00:06]} d6 {[%emt 0:03:44]} 11. c3 {[%emt 0:04:47]} h5 {[%emt 0:06:07]} 12. Be2 {[%emt 0:02:45]} e5 {[%emt 0:06:49]} (12... g4 $5 13. Ne1 $8 Nf6 $11) 13. a4 {[%emt 0:08:10]} g4 {[%emt 0:07:18]} 14. Ne1 {[%emt 0:00:11]} Nf6 {[%emt 0:00:02][%cal Bg8f6,Bf6h5,Bh5f4][%mdl 32]} 15. Qc2 {[%emt 0:14:34]} h4 {[%emt 0:08:09]} 16. f4 {[%emt 0:01:47]} gxf3 {[%emt 0:02:49]} (16... exf4 $15 17. Rxf4 Be6) 17. Nxf3 $14 {[%emt 0:03:41]} Nh5 {[%emt 0:02:50]} 18. Bc4 {[%emt 0:02:36][%cal Od2d4]} Nf4 {[%emt 0:04:48]} (18... Rg8 {feels hotter.} 19. Rf2 Be6 20. d4 exd4 21. cxd4 cxd4 22. Qd2 Qf6) 19. Nd3 {[%emt 0:05:37]} Bg4 {[%emt 0:07:56]} (19... Ne2+ $11 20. Kh1 Ng3+ 21. hxg3 hxg3+ 22. Kg1 Qf6) 20. Nxf4 $16 {[%emt 0:10:41]} exf4 {[%emt 0:00:05]} 21. h3 {[%emt 0:01:46]} Bh5 {[%emt 0:02:14]} 22. d4 {[%emt 0:04:22]} cxd4 {[%emt 0:02:02]} 23. Bd5 $1 {[%emt 0:03:28]} Ne5 {[%emt 0:08:54]} 24. Nxe5 {[%emt 0:01:57]} (24. cxd4 $2 Nxf3+ 25. gxf3 Rg8+ 26. Kh2 Rc8 $19) (24. Nxd4 {with more complications.} f3 25. Bxb7 Rg8 26. Rf2) 24... dxe5 {[%emt 0:00:06]} 25. cxd4 {[%emt 0:01:03]} (25. Bxb7 d3 26. Qf2 Rb8 27. Bxa6 Be2 $16) 25... Qe7 {[%emt 0:04:10]} 26. Rac1 {[%emt 0:08:53] White is much more active.} (26. dxe5 $142 f3 27. Qc3 (27. gxf3 Rg8+ 28. Kh2 Bxf3 $11)) 26... f6 {[%emt 0:02:41]} (26... f3 $16) 27. Qf2 {[%emt 0:03:31]} Bf7 {[%emt 0:03:44]} 28. dxe5 {[%emt 0:01:43]} fxe5 {[%emt 0:00:08]} 29. Qb6 {[%emt 0:00:18] Black must now prevent Rc7.} Bxd5 {[%emt 0:02:06]} 30. exd5 {[%emt 0:01:08] Rc7 is the strong threat.} O-O {[%emt 0:01:56]} 31. Rc7 {[%emt 0:07:42][%cal Bc1c7,Bc7b7,Bb7b6,Bb6a6][%mdl 32]} Qf6 {[%emt 0:00:41]} 32. Rxb7 {[%emt 0:01:04]} (32. Qxb7 Rab8 33. Qc6 Qxc6 34. dxc6 Rxb3) 32... Rad8 {[%emt 0:00:37]} 33. Qb4 {[%emt 0:05:14]} Qg6 {[%emt 0:05:38][%cal Of4f3] [#]} 34. Rb6 $1 {[%emt 0:02:23]} Qd3 {[%emt 0:01:22] [#]} 35. Rf3 {[%emt 0:01:41]} ({White should try} 35. Rh6 $1 $16 {Hoping for Qe7.} Rd7 36. d6 (36. Rxh4 Qxd5 37. Rg4+ Rg7 $18)) 35... Qxd5 $14 {[%emt 0:01:32]} 36. Rxa6 {[%emt 0:01:22] aiming for Qe7.} Qd4+ {[%emt 0:04:14]} (36... e4 37. Rf2 Qd1+ 38. Rf1 Qd4+ 39. Qxd4 Rxd4 40. Rg6+ Kh7 41. Rg4) 37. Qxd4 {[%emt 0:00:05]} Rxd4 {[%emt 0:00:01]} 38. Rc3 {[%emt 0:01:25]} e4 {[%emt 0:02:22]} 39. Rc7 {[%emt 0:02:48] Weighted Error Value: White=0.17 (very precise) /Black=0.23 (precise) .  Mistake:       	White=3     	Black=3      Inaccurate:     	White=4     	Black=2      OK:         	White=9     	Black=9      Best:        	White=4     	Black=4      Strong:       	White=1     	---} (39. Rg6+ $14 Kf7 40. Rb6) 1/2-1/2